Cogmind - Beta 10.2 @@@ ROGUE MODE // 2021.10.29 @ 16:05:17 Player: Phaethon Result: Destroyed by G-34 Mercenary with Small Laser Performance ------------- Evolutions (0) 0 Regions Visited (4) 800 Robots Destroyed (6) 30 Value Destroyed (52) 52 Prototype IDs (0) 0 Alien Tech Used (0) 0 Bonus (-77) -77 TOTAL SCORE: 805 Bonus ------- Follower Combat Kills 21 Friendly Fire -98 Cogmind --------- Core Integrity 0/250 Matter 249/300 Energy 124/125 System Corruption 0% Temperature Cool (6) Movement Core (50) Location -9/Mines Parts ------- > --- POWER (1) -------- Light Ion Engine > --- PROPULSION (2) --- (None) > --- UTILITY (2) ------ Weight Redist. System > --- WEAPON (2) ------- Assault Rifle Rocket Launcher > --- INVENTORY (4) ---- Light Ion Engine Light Assault Rifle Light Assault Rifle Mining Claw Peak State ------------ > --- POWER ------------ Light Ion Engine > --- PROPULSION ------- Flight Unit Flight Unit > --- UTILITY ---------- Signal Interpreter Weapon Shielding > --- WEAPON ----------- Light Assault Rifle Light Assault Rifle > --- INVENTORY -------- Light Ion Engine Small Storage Unit Assault Rifle [Rating: 7] Favorites ----------- Power Light Ion Engine Engine Light Ion Engine Propulsion Flight Unit Flight Unit Flight Unit Utility Weapon Shielding Device Weight Redist. System Storage Small Storage Unit Processor Signal Interpreter Protection Weapon Shielding Weapon Light Assault Rifle Ballistic Gun Light Assault Rifle Launcher Rocket Launcher Slashing Weapon Mining Claw Build | -11 -10 -10 -10 -9 ------- Run | Scr Mat Min Exi Min Slots Evolved . | . . . . . Power . | . . . . . Propulsion . | . . . . . Utility . | . . . . . Weapon . | . . . . . Parts Attached 24 | 2 11 4 4 3 Power 3 | . 2 . . 1 Engine 3 | . 2 . . 1 Core . | . . . . . Reactor . | . . . . . Propulsion 3 | . 2 . 1 . Treads . | . . . . . Leg . | . . . . . Wheel . | . . . . . Hover . | . . . . . Flight 3 | . 2 . 1 . Utility 5 | . 3 1 . 1 Device 1 | . . . . 1 Storage 1 | . 1 . . . Processor 1 | . 1 . . . Hackware . | . . . . . Protection 2 | . 1 1 . . Artifact . | . . . . . Weapon 13 | 2 4 3 3 1 Energy Gun . | . . . . . Energy Cannon . | . . . . . Ballistic Gun 11 | 2 4 3 2 . Ballistic Cannon . | . . . . . Launcher 1 | . . . . 1 Special Weapon . | . . . . . Impact Weapon . | . . . . . Slashing Weapon 1 | . . . 1 . Piercing Weapon . | . . . . . Special Melee Weapon . | . . . . . Unidentified Prototypes . | . . . . . Parts Lost 5 | . . . 5 . Power . | . . . . . Propulsion 3 | . . . 3 . Utility 1 | . . . 1 . Weapon 1 | . . . 1 . Highest Loss Streak 5 | . . . 5 . Average Slot Usage (%) 61 | . 68 85 60 41 Engine 2 | . 1 . . 6 Flight 13 | . 17 28 19 . Device 2 | . . . . 6 Storage 6 | . 7 14 8 . Protection 8 | . 12 14 10 . Ballistic Gun 26 | . 28 28 15 26 Naked Turns 22 | . . . 22 . Heaviest Build 9 | 2 7 7 8 9 Greatest Support 9 | 3 8 8 8 9 Greatest Overweight (x) . | . . . . . Average Overweight (x) . | . . . . . Largest Inventory Capacity 6 | 4 6 6 6 4 Average Capacity 4 | 4 4 6 5 4 Most Carried 6 | 3 6 6 6 4 Average Carried 4 | 1 4 5 5 3 Final Capacity 6 | 4 6 6 4 4 Final Carried 6 | 3 6 6 2 4 Class Distribution -------------------- 84% | Mutant 15% | Scavenger-Mutant Dominant Class ---------------- Mutant | -10/Materials Scavenger-Mutant | -10/Mines Mutant | -10/Exiles Mutant | -9/Mines Resources | -11 -10 -10 -10 -9 ----------- Run | Scr Mat Min Exi Min Matter Collected 398 | 220 113 47 . 18 Remotely . | . . . . . Salvage Created 113 | . 113 . . . Parts 7 | . 7 . . . Haulers Intercepted 1 | . 1 . . . Recyclers Shooed . | . . . . . Parts Field Recycled . | . . . . . Retrieved Matter . | . . . . . Parts Self-Destructed . | . . . . . Prevented . | . . . . . Kills | -11 -10 -10 -10 -9 ------- Run | Scr Mat Min Exi Min Combat Hostiles Destroyed 5 | . 5 . . . Guns 5 | . 5 . . . Classes Destroyed 2 | . 2 . . . Hauler 1 | . 1 . . . Swarmer 5 | . 5 . . . Best Kill Streak 3 | . 3 . . . Combat Bots Only 3 | . 3 . . . Max Kills in Single Turn 2 | . 2 . . . Gunslinging 1 | . 1 . . . Exploded . | . . . . . Melee . | . . . . . Uniques/NPCs Destroyed . | . . . . . Combat | -11 -10 -10 -10 -9 -------- Run | Scr Mat Min Exi Min Damage Taken 675 | . 105 . 559 11 Core 258 | . 37 . 210 11 Absorbed by Shields . | . . . . . Core Remaining (%) 100 | 100 . . . . Volleys Fired 17 | . 17 . . . Largest 2 | . 2 . . . Hottest 40 | . 40 . . . Shots Fired 34 | . 34 . . . Gun 34 | . 34 . . . Cannon . | . . . . . Launcher . | . . . . . Special . | . . . . . Kinetic 34 | . 34 . . . Thermal . | . . . . . Explosive . | . . . . . Electromagnetic . | . . . . . Robot Hit Streak 5 | . 5 . . . Robot Miss Streak 2 | . 2 . . . Penetration Max . | . . . . . Secondary Targets 2 | . 2 . . . Max Gunslinging Chain 1 | . 1 . . . Shots Hit Robots 23 | . 21 . 2 . Core Hits 9 | . 9 . . . Critical Hits 1 | . 1 . . . Critical Kills . | . . . . . Critical Parts Destroyed 1 | . 1 . . . Melee Attacks 2 | . . . 2 . Impact . | . . . . . Slashing 2 | . . . 2 . Piercing . | . . . . . Sneak Attacks 2 | . . . 2 . Combat Hostiles . | . . . . . Follow-up Attacks . | . . . . . Damage Inflicted 340 | . 168 . 172 . Guns 168 | . 168 . . . Cannons . | . . . . . Explosions . | . . . . . Melee 172 | . . . 172 . Ramming . | . . . . . Kinetic 168 | . 168 . . . Thermal . | . . . . . Explosive . | . . . . . Electromagnetic . | . . . . . Impact . | . . . . . Slashing 172 | . . . 172 . Piercing . | . . . . . Highest Corruption . | . . . . . Average Corruption . | . . . . . Corruption Purged . | . . . . . Overload Shots . | . . . . . Overflow Damage . | . . . . . Projectiles . | . . . . . Explosions . | . . . . . Melee . | . . . . . Knockbacks . | . . . . . Impact . | . . . . . Kinetic . | . . . . . Secondary . | . . . . . Self-Inflicted Damage . | . . . . . Shots . | . . . . . Rammed . | . . . . . Targets Rammed . | . . . . . Kicked . | . . . . . Crushed . | . . . . . Highest Temperature 1 | . . . 1 . Average Temperature 1 | . . . 1 . Received Heat Transfer 46 | . . . 40 6 Siege Activations . | . . . . . Robots Corrupted . | . . . . . Combat Hostiles . | . . . . . Parts Fried . | . . . . . Impact Corruptions . | . . . . . Robots Melted . | . . . . . Combat Hostiles . | . . . . . Parts Melted . | . . . . . Heat Transferred . | . . . . . Parts Sabotaged . | . . . . . Parts Stolen . | . . . . . Parts Stripped . | . . . . . Power Chain Reactions . | . . . . . Missiles Intercepted . | . . . . . Alert | -11 -10 -10 -10 -9 ------- Run | Scr Mat Min Exi Min Peak Influence 187 | . 187 153 . . Initial 72 | . . 72 . . Average 68 | . 113 114 . . Maximum Alert Level . | . . . . . Low Security (%) 100 | 100 100 100 . 100 Level 1 . | . . . . . Level 2 . | . . . . . Level 3 . | . . . . . Level 4 . | . . . . . Level 5 . | . . . . . High Security . | . . . . . Max Security . | . . . . . Squads Dispatched 1 | . 1 . . . Investigation . | . . . . . Extermination . | . . . . . Reinforcement 1 | . 1 . . . Assault . | . . . . . Garrison . | . . . . . Intercept . | . . . . . Construction Impeded . | . . . . . Haulers Reinforced . | . . . . . Stealth | -11 -10 -10 -10 -9 --------- Run | Scr Mat Min Exi Min Distress Signals 2 | . 2 . . . Communications Jammed . | . . . . . Distress Signals . | . . . . . Times Spotted 20 | . 10 . 8 2 Peak Tracking Total 12 | . 5 . 12 . Tactical Retreats 3 | . 1 . 2 . Traps | -11 -10 -10 -10 -9 ------- Run | Scr Mat Min Exi Min Traps Triggered 1 | . 1 . . . Indirectly . | . . . . . Trap Hack Attempts . | . . . . . Triggered . | . . . . . Disarmed . | . . . . . Reprogrammed . | . . . . . Reused . | . . . . . Traps Extracted . | . . . . . Installed . | . . . . . Triggered . | . . . . . Machines | -11 -10 -10 -10 -9 ---------- Run | Scr Mat Min Exi Min Machines Disabled . | . . . . . Max in Single Turn . | . . . . . Machines Sabotaged . | . . . . . Garrisons Compromised . | . . . . . Overloaded Fab Kills . | . . . . . Fab Network Shutdowns . | . . . . . Hacking | -11 -10 -10 -10 -9 --------- Run | Scr Mat Min Exi Min Machines Accessed 5 | . 5 . . . Terminals 4 | . 4 . . . Fabricators . | . . . . . Repair Stations . | . . . . . Recycling Units 1 | . 1 . . . Scanalyzers . | . . . . . Garrison Access . | . . . . . Total Hacks 17 | . 17 . . . Successful 6 | . 6 . . . Failed 11 | . 11 . . . Catastrophic . | . . . . . Database Lockouts . | . . . . . Manual 15 | . 15 . . . Terminals 14 | . 14 . . . Fabricators . | . . . . . Repair Stations . | . . . . . Recycling Units 3 | . 3 . . . Scanalyzers . | . . . . . Garrison Access . | . . . . . Terminal Hacks 3 | . 3 . . . Robot Analysis 2 | . 2 . . . Locate Traps 1 | . 1 . . . Fabricator Hacks . | . . . . . Repair Station Hacks . | . . . . . Recycling Unit Hacks 1 | . 1 . . . Report Inventory 1 | . 1 . . . Scanalyzer . | . . . . . Garrison Access Hacks . | . . . . . Unauthorized Hacks 2 | . 2 . . . Terminals 2 | . 2 . . . Botnet 2 | . 2 . . . Fabricators . | . . . . . Repair Stations . | . . . . . Recycling Units . | . . . . . Scanalyzers . | . . . . . Garrison Access . | . . . . . Data Cores Recovered . | . . . . . Used . | . . . . . Hacking Detections 5 | . 5 . . . Full Trace Events . | . . . . . Feedback Events . | . . . . . Feedback Blocked . | . . . . . Robot Schematics Acquired . | . . . . . Robots Built . | . . . . . Matter . | . . . . . Time . | . . . . . Total Robot Build Rating . | . . . . . Part Schematics Acquired . | . . . . . Parts Built . | . . . . . Matter . | . . . . . Time . | . . . . . Total Part Build Rating . | . . . . . Parts Repaired . | . . . . . Time . | . . . . . Parts Recycled . | . . . . . Recycled Matter . | . . . . . Retrieved Matter . | . . . . . Retrieved Components . | . . . . . Parts Scanalyzed . | . . . . . Part Schematics Acquired . | . . . . . Parts Damaged . | . . . . . Bothacking | -11 -10 -10 -10 -9 ------------ Run | Scr Mat Min Exi Min Used RIF Installer . | . . . . . Robots Hacked . | . . . . . Non-combat . | . . . . . Combat . | . . . . . Robot Hacks Applied . | . . . . . Relay Couplers Released . | . . . . . Robots Rewired . | . . . . . Allies Hacked . | . . . . . Hacks Repelled . | . . . . . Allies | -11 -10 -10 -10 -9 -------- Run | Scr Mat Min Exi Min Total Allies 3 | . . 3 . . Largest Group 3 | . . 3 3 . Highest-Rated Group 40 | . . 40 40 . Highest-Rated Ally 16 | . . 16 16 . Total Orders . | . . . . . Ally Attacks 14 | . . 7 7 . Total Damage 59 | . . 53 6 . Kills 3 | . . 3 . . Allies Corrupted . | . . . . . Allies Melted . | . . . . . Intel | -11 -10 -10 -10 -9 ------- Run | Scr Mat Min Exi Min Robot Analysis Total 2 | . 2 . . . Derelict Logs Recovered 3 | . . 1 . 2 Drone Launches . | . . . . . Drone Recoveries . | . . . . . Exploration | -11 -10 -10 -10 -9 ------------- Run | Scr Mat Min Exi Min Turns Passed 651 | 23 222 122 77 207 Spaces Moved 947 | 35 269 116 132 395 Core 592 | 35 118 . 44 395 Treads . | . . . . . Legs . | . . . . . Wheels . | . . . . . Hover . | . . . . . Flight 355 | . 151 116 88 . Fastest Speed 37 | 50 37 37 37 50 Average Speed 45 | 50 42 37 41 50 Slowest Speed 50 | 50 50 37 50 50 Overloaded Moves . | . . . . . Propulsion Burnouts . | . . . . . Robots Hopped . | . . . . . Cave-ins Triggered . | . . . . . Exploration Rate (%) 40 | 3 50 21 48 78 Regions Visited 4 Branch Regions 3 Pre-discovered Areas 1 | . . . . 1 Known Exits Taken . | . . . . . Unknown Exits Taken 4 | 1 1 1 1 . Scrap Searched 2 | . . 1 . 1 Spaces Dug . | . . . . . Terrain Destroyed . | . . . . . Melee . | . . . . . Projectile . | . . . . . AOE . | . . . . . Terrain Rammed . | . . . . . Walls Destroyed . | . . . . . Machines Disabled . | . . . . . Actions | -11 -10 -10 -10 -9 --------- Run | Scr Mat Min Exi Min Total 1135 | 39 346 197 150 403 Wait 124 | . 43 68 11 2 Move 943 | 34 268 115 131 395 Hop . | . . . . . Pick Up 14 | 3 4 4 . 3 Fast Attach 7 | 2 4 . . 1 Attach 8 | . 4 . 3 1 Detach 1 | . 1 . . . Swap 9 | . 3 4 1 1 Drop 10 | . 2 6 2 . Fire 17 | . 17 . . . Melee 2 | . . . 2 . Ram . | . . . . . Kick . | . . . . . Crush . | . . . . . Escape Stasis . | . . . . . Rewire . | . . . . . Trap . | . . . . . Miscellaneous . | . . . . . Route ------- -11/Scrapyard -10/Materials -10/Mines (discovered 2 exits: [*Mat] / [*Exi]) -10/Exiles -9/Mines (discovered 1 exit: [*Mat]) History --------- Turn | Location | Event 12 | -11/Scrapyard | Discovered new exit (range 16) 24 | -11/Scrapyard | Entered Materials 236 | -10/Materials | Discovered new exit (range 8) 246 | -10/Materials | Entered Mines 248 | -10/Mines | Learned Materials terminal intel 248 | -10/Mines | Assisted by bots powering up and referring to "LRC-V3" 253 | -10/Mines | Discovered new exit (range 7) 253 | -10/Mines | A weapon hastily lodged in a ceiling crevice suddenly fell to the ground 352 | -10/Mines | Deemed a non-threat by the Exiles lab entrance 352 | -10/Mines | Discovered new exit (range 5) 368 | -10/Mines | Entered Exiles 368 | -10/Exiles | Accompanied by 3 allies 378 | -10/Exiles | Met 8R-AWN 395 | -10/Exiles | Met EX-HEX 399 | -10/Exiles | Attacked by the Exiles 410 | -10/Exiles | Core integrity fell below 50% 424 | -10/Exiles | Core integrity fell below 20% 438 | -10/Exiles | Discovered new exit (range 14) 445 | -10/Exiles | Entered Mines 452 | -9/Mines | Lost 5 parts (3n1u1w) 529 | -9/Mines | Received a Rocket Launcher from a helpful Derelict 539 | -9/Mines | Learned Materials terminal intel 557 | -9/Mines | Learned location of Zion (-7) 601 | -9/Mines | Discovered new exit (range 9) 652 | -9/Mines | Destroyed by G-34 Mercenary with Small Laser Last Messages --------------- 00529_ CE-5LJ(g) slips back into the shadows. 00529_ K-01 Serf collects debris. 00530_ Acquired Rocket Launcher. 00536_ K-01 Serf collects debris. 00539_ Acquired derelict log, extracted data. Data stored: Materials terminal intel. 00543_ K-01 Serf collects debris. 00549_ Searching scrap... 00549_ Found Lgt. Ion Engine. 00549_ Found Imp. Terrain Scanner. 00549_ Found Weight Redist. System. 00549_ Found Lgt. Assault Rifle. 00549_ Found 18 Matter. 00550_ Acquired 18 matter. 00550_ Acquired Weight Redist. System. 00553_ Acquired Lgt. Ion Engine. 00555_ Acquired Lgt. Assault Rifle. 00557_ Acquired derelict log, extracted data. World map updated: -7/Zion. 00601_ EXIT=FOUND Map ----- +----------------------------------------------------+ | ##???????????## ##???????????????? | | ###### ##????????##### ##????????????????? | | ##????####????????## #?????####????????? | | ##?????????????????# #???## ##???????? | | #???????????#####?## ##???# #???????? | | ##??????????## ### ###????# #???????? | | #??????###### ##??????# #????????? | | ???????# ##???????# #?????????? | | ?????### #???????## ##????????? | | ?????# ##?????## #????????? | | ?????# # ##???## #?####???? | | ?##### ##### ### ##??# #### ##### | | ## #???#######?#### #??# ##?# | | #####??????????????## ##?# ##?## | | #???????????????????## #### #### #?# | | ####????????????????????## ### ## #?#! | | ?????????????????????????## ### | | ##????????????????????????## | | #?????????????????????????## ### # #### | | #??????????????????????????# #?# ## ##??# | | #??????????????????????????# #?# ## #???# | | #??????????????????????##### ### ### #???# | | #??????????????????????# #?## #???# | | #??????????# ?????????# ####### #??## #???# | | #??????????# < g #### #????## ####### #???## | | #??????????# g @#????# ### #??## | | #??????????# ######????# #?# #??# | | ????????????# ????????????????# """#?# #?# | | ???????????????????????????????# """#?# #?# | | ???????????????????????????????# """#?# #?# | | ???????????????????????????????# #?## ##?# | | ???????????????????????????????#########???###??## | | ?????????????????????????????????????????????????? | | ?????????????????????????????????????????????????? | | ?????????????????????????????????????????????????? | | | | | | | | | | | | | | | | | | | | | | | | | | | | | | | +----------------------------------------------------+ Best States ------------- Heat Dissipation 25 Energy Generation 10 Energy Capacity 125 Matter Stores 296 Matter Capacity 300 Sight Range 16 Terrain Scan Density 10 Additional Mass Support 6 Weapon Shielding 33 Evasion (%) 62 Item Schematics ----------------- None Robot Schematics ------------------ None Fabricated ------------ Nothing Alien Tech Used ----------------- None Achievements -------------- None Challenges ------------ None Game ------ Seed SupersonicLightShield Manual? 0 Play Time 00:19:39 Cumulative 63.4 hours Start 2021.10.29 @ 15:44:48 End 2021.10.29 @ 16:05:17 Sessions 1 Manual Loads 0 Difficulty Rogue Special Mode None Game No. 11 Rogue 11 Adventurer 0 Explorer 0 Win Type - Total 2 Types 2/0/0/0/0/0/0/0/0 Lore% 51 Gallery% 48 Achievement% 45 Wizard Run 0 Options --------- ASCII 0 Keyboard 0 Movement Vi Keybinds 0 Fullscreen 1 Font 36/Smallcaps Map View 76x50 Tactical HUD 1 Map Filters NONE Filters NONE Steam 1 RUN: 3866f284-1599-4d94-9633-f09f8496fc34